fUSD/lending_fUSD_20241225
["ID","MTS","AMOUNT","RATE_DAILY","PERIOD"]
[346587980,1735117856076,-500.0,0.00010057,2]
[346587981,1735117856088,-219.5960865,0.00010057,2]
[346587982,1735117856102,-51.32351153,0.00010057,2]
[346587983,1735117856126,-622.68,0.00010057,2]
[346587984,1735117857749,-477.02747644,9.651e-05,2]
[346587985,1735117857759,-3510.48648847,0.00010057,2]
[346587986,1735117857770,-411.60443881,0.00010057,2]
[346587987,1735117857823,-715.20274929,0.00010056,2]
[346587988,1735117857834,-690.95434555,0.00010056,2]
[346587989,1735117857851,-213.16290516,0.00010056,2]
[346587990,1735117857860,-54.01767384,0.00010057,2]
[346587991,1735117857893,-47.46788735,0.00010057,2]
[346587992,1735117857902,-1482.47,0.00010057,2]
[346587993,1735117857913,-157.671858,0.00010058,2]
[346587994,1735117857921,-586.86498796,0.00010058,2]
[346587995,1735117857930,-500.0,0.00010058,2]
[346587996,1735117857941,-500.0,0.00010058,2]
[346587997,1735117857950,-500.0,0.00010058,2]
[346587998,1735117857959,-500.0,0.00010058,2]
[346587999,1735117857968,-153.40508213,0.00010058,2]
[346588000,1735117857977,-500.0,0.00010058,2]
[346588001,1735117857987,-500.0,0.00010058,2]
[346588002,1735117857998,-500.0,0.00010058,2]
[346588003,1735117858007,-500.0,0.00010058,2]
[346588004,1735117858016,-1765.8,0.00010058,2]
[346588005,1735117858024,-796.89,0.00010058,2]
[346588006,1735117858033,-657.64001058,0.00010058,2]
[346588007,1735117858958,-500.0,9.782e-05,2]
[346588008,1735117858967,-1412.66,9.783e-05,2]
[346588009,1735117858976,-500.0,9.783e-05,2]
[346588010,1735117858985,-1412.66,0.00010057,2]
[346588011,1735117858996,-500.0,0.00010057,2]
[346588012,1735117859005,-351.61998942,0.00010058,2]
[346588013,1735117859014,-1347.84,0.00010058,2]
[346588014,1735117859023,-500.0,0.00010058,2]
[346588015,1735117859031,-500.0,0.00010058,2]
[346588016,1735117859041,-165.01367806,0.00010058,2]
[346588017,1735117859103,-334.98632194,0.00010058,2]
[346588018,1735117859114,-644.38,0.00010058,2]
[346588019,1735117859124,-500.0,0.00010058,2]
[346588020,1735117859134,-500.0,0.00010058,2]
[346588021,1735117859144,-351.71910614,0.00010058,2]
[346588022,1735117859156,-148.28089386,0.00010058,2]
[346588023,1735117859165,-176.11910614,0.00010058,2]
[346588024,1735117870871,1000.0,9.552e-05,2]
[346588025,1735117877690,339.658,9.56e-05,2]
[346588026,1735117881133,1328.58,8.219e-05,2]
[346588027,1735117887889,2539.15,9.299e-05,2]
[346588029,1735117891215,1801.6825,9.552e-05,2]
[346588030,1735117901763,5000.0,9.552e-05,2]
[346588031,1735117922754,2500.0,9.552e-05,2]
[346588032,1735117928410,3860.4543,9.552e-05,2]
[346588033,1735117963663,162.74,7.375e-05,2]
[346588034,1735117978843,358.05,9.202e-05,2]
[346588035,1735117991980,11862.7896,9.552e-05,2]
[346588036,1735118000410,5000.0,9.552e-05,2]
[346588037,1735118173416,4779.0,9.59e-05,2]
[346588038,1735118226170,200.0,9.062e-05,2]
[346588039,1735118238037,2072.4856,9.551e-05,2]
[346588040,1735118252312,375.35,9.058e-05,2]
[346588041,1735118289967,565.0302,9.551e-05,2]
[346588042,1735118311264,647.05,9.052e-05,2]
[346588044,1735118333756,250.0,9.063e-05,2]
[346588045,1735118345994,838.6004446,0.00018,30]
[346588046,1735118477210,1500.0,9.062e-05,2]
[346588047,1735118483540,1000.0,9.062e-05,2]
[346588048,1735118500973,1870.79,9.072e-05,2]
[346588049,1735118524154,325.586,9.56e-05,2]
[346588050,1735118551063,1000.0,0.00018,40]
[346588052,1735118615124,382.1363,9.551e-05,2]
[346588053,1735118615936,250.0,9.06e-05,2]
[346588054,1735118632927,657.7079,9.551e-05,2]
[346588055,1735118633719,8503.3317,9.551e-05,2]
[346588056,1735118636148,23900.0,9.06e-05,2]
[346588057,1735118639486,1797.3305,9.551e-05,2]
[346588058,1735118664603,347.5809,9.551e-05,2]
[346588059,1735118719017,3356.74608157,9e-05,2]
[346588060,1735118720410,169.18,9e-05,2]
[346588061,1735118734944,5000.0,8e-05,2]
[346588062,1735118746979,1331.18,8.219e-05,2]
[346588063,1735118752777,6472.61312108,6.94e-05,2]
[346588069,1735118910856,300.0,8.999e-05,2]
[346588070,1735118916533,3219.18139091,1e-05,2]
[346588071,1735118953507,511.05,9e-05,2]
[346588230,1735119013417,577396.50314073,9.603e-05,2]
[346588238,1735119032641,-1032.3321,9.616e-05,2]
[346588239,1735119032650,-300.0,9.649e-05,2]
[346588240,1735119032660,-956.13,9.65e-05,2]
[346588241,1735119032670,-2768.26915521,9.65e-05,2]
[346588242,1735119032683,-870.78084479,9.65e-05,2]
[346588243,1735119032693,-1494.19254345,9.65e-05,2]
[346588244,1735119032803,-706.31745655,9.65e-05,2]
[346588245,1735119032813,-333.48254335,9.65e-05,2]
[346588246,1735119032835,-566.89501676,9.65e-05,2]
[346588247,1735119032848,-2145.10243989,9.65e-05,2]
[346588248,1735119032857,-1213.69756011,9.65e-05,2]
[346588249,1735119032869,-1059.9999925,9.65e-05,2]
[346588250,1735119032880,-1125.65000025,9.65e-05,2]
[346588251,1735119032903,-6863.46244714,9.65e-05,2]
[346588252,1735119032913,-4374.87336687,9.65e-05,2]
[346588253,1735119032925,-450.1191911,9.65e-05,2]
[346588254,1735119032936,-1107.64615845,9.65e-05,2]
[346588255,1735119032947,-10780.45128358,9.65e-05,2]
[346588257,1735119032956,-1209.4,9.65e-05,2]
[346588258,1735119032965,-504.09445942,9.65e-05,2]
[346588260,1735119032975,-1334.37,9.65e-05,2]
[346588263,1735119032984,-500.0,9.65e-05,2]
[346588264,1735119032993,-1181.62,9.65e-05,2]
[346588266,1735119033002,-1865.73,9.65e-05,2]
[346588268,1735119033012,-2722.4,9.65e-05,2]
[346588270,1735119033022,-728.31,9.65e-05,2]
[346588272,1735119033031,-1364.40801407,9.65e-05,2]
[346588275,1735119033049,-644.666761,9.65e-05,2]
[346588288,1735119038301,-2216.75522493,9.65e-05,2]
[346588289,1735119038311,-0.46456817,9.65e-05,2]
[346588290,1735119038323,-651.14543183,9.65e-05,2]
[346588291,1735119038332,-2088.33,9.65e-05,2]
[346588292,1735119038342,-2042.74,9.65e-05,2]
[346588293,1735119038352,-348.53839419,9.65e-05,2]
[346588294,1735119038361,-6289.66,9.65e-05,2]
[346588295,1735119038370,-2914.72,9.65e-05,2]
[346588296,1735119038379,-4753.7,9.65e-05,2]
[346588297,1735119038388,-1380.26,9.65e-05,2]
[346588298,1735119038398,-1601.55,9.65e-05,2]
[346588299,1735119038408,-2780.72,9.65e-05,2]
[346588300,1735119038417,-3958.21,9.65e-05,2]
[346588301,1735119038427,-1252.76,9.65e-05,2]
[346588302,1735119038436,-1993.91,9.65e-05,2]
[346588303,1735119038446,-577.58,9.65e-05,2]
[346588304,1735119038455,-1202.34,9.65e-05,2]
[346588305,1735119038465,-3583.81,9.65e-05,2]
[346588306,1735119038474,-1419.89,9.65e-05,2]
[346588307,1735119038484,-1153.02,9.65e-05,2]
[346588308,1735119038494,-500.0,9.65e-05,2]
[346588309,1735119038503,-500.0,9.65e-05,2]
[346588310,1735119038514,-2717.26,9.65e-05,2]
[346588311,1735119038525,-2444.72,9.65e-05,2]
[346588312,1735119038535,-500.0,9.65e-05,2]
[346588313,1735119038545,-500.0,9.65e-05,2]
[346588314,1735119038554,-500.0,9.65e-05,2]
[346588315,1735119038563,-500.0,9.65e-05,2]
[346588316,1735119038573,-2694.04,9.65e-05,2]
[346588317,1735119038582,-1023.76,9.65e-05,2]
[346588318,1735119038592,-500.0,9.65e-05,2]
[346588319,1735119038601,-500.0,9.65e-05,2]
[346588320,1735119038611,-500.0,9.65e-05,2]
[346588321,1735119038621,-500.0,9.65e-05,2]
[346588322,1735119038630,-878.91,9.65e-05,2]
[346588323,1735119038640,-500.0,9.65e-05,2]
[346588324,1735119038650,-1626.9,9.65e-05,2]
[346588325,1735119038661,-2282.6,9.651e-05,2]
[346588326,1735119038670,-2019.05,9.651e-05,2]
[346588327,1735119038680,-1444.24,9.651e-05,2]
[346588328,1735119038690,-500.0,9.651e-05,2]
[346588329,1735119038700,-1784.34,9.651e-05,2]
[346588330,1735119038709,-1223.49,9.651e-05,2]
[346588331,1735119038718,-500.0,9.651e-05,2]
[346588332,1735119038728,-2420.44,9.651e-05,2]
[346588334,1735119038737,-709.27,9.651e-05,2]
[346588336,1735119038746,-1098.25,9.651e-05,2]
[346588338,1735119038756,-1714.39,9.651e-05,2]
[346588340,1735119038765,-2128.9,9.651e-05,2]
[346588342,1735119038775,-1134.62,9.651e-05,2]
[346588344,1735119038784,-1775.29,9.651e-05,2]
[346588346,1735119038793,-500.0,9.651e-05,2]
[346588348,1735119038802,-1557.66,9.651e-05,2]
[346588350,1735119038811,-3264.98,9.651e-05,2]
[346588352,1735119038822,-1208.75,9.651e-05,2]
[346588354,1735119038831,-545.95720252,9.651e-05,2]
[346588356,1735119038840,-1971.85,9.651e-05,2]
[346588358,1735119038850,-1624.95,9.651e-05,2]
[346588360,1735119038858,-1271.99,9.651e-05,2]
[346588362,1735119038868,-1106.25255414,9.651e-05,2]
[346588365,1735119038888,-761.88744586,9.651e-05,2]
[346588367,1735119038897,-840.22755368,9.651e-05,2]
[346588368,1735119038941,-626.96244632,9.651e-05,2]
[346588369,1735119038950,-1799.34,9.651e-05,2]
[346588370,1735119038960,-1830.07,9.651e-05,2]
[346588371,1735119038970,-2636.01,9.651e-05,2]
[346588372,1735119038979,-1166.74,9.651e-05,2]
[346588373,1735119038989,-500.0,9.651e-05,2]
[346588374,1735119038999,-1397.64,9.651e-05,2]
[346588375,1735119039008,-1046.44,9.651e-05,2]
[346588376,1735119039018,-1595.5,9.651e-05,2]
[346588377,1735119039028,-818.78,9.651e-05,2]
[346588378,1735119039037,-500.0,9.651e-05,2]
[346588379,1735119039047,-500.0,9.651e-05,2]
[346588380,1735119039059,-1576.89,9.651e-05,2]
[346588381,1735119039069,-917.23,9.651e-05,2]
[346588382,1735119039079,-2957.03,9.651e-05,2]
[346588383,1735119039088,-1751.32,9.651e-05,2]
[346588384,1735119039099,-500.0,9.651e-05,2]
[346588385,1735119039111,-605.0,9.651e-05,2]
[346588386,1735119039121,-2340.58,9.651e-05,2]
[346588387,1735119039132,-500.0,9.651e-05,2]
[346588388,1735119039142,-2730.45,9.651e-05,2]
[346588389,1735119039151,-2033.73,9.651e-05,2]
[346588390,1735119039165,-2217.27,9.651e-05,2]
[346588391,1735119039175,-961.96,9.651e-05,2]
[346588392,1735119039184,-2150.36,9.651e-05,2]
[346588393,1735119039194,-2103.01,9.651e-05,2]
[346588394,1735119039204,-549.48,9.651e-05,2]
[346588395,1735119039213,-893.99,9.651e-05,2]
[346588396,1735119039223,-1805.54,9.651e-05,2]
[346588397,1735119039232,-500.0,9.651e-05,2]
[346588398,1735119039241,-500.0,9.651e-05,2]
[346588399,1735119039250,-1673.3,9.651e-05,2]
[346588400,1735119039260,-1546.8,9.651e-05,2]
[346588401,1735119039269,-1875.89,9.651e-05,2]
[346588402,1735119039278,-1542.57,9.651e-05,2]
[346588403,1735119039288,-1492.44,9.651e-05,2]
[346588404,1735119039297,-500.0,9.651e-05,2]
[346588405,1735119039306,-1670.91,9.651e-05,2]
[346588406,1735119039315,-2059.57,9.651e-05,2]
[346588407,1735119039324,-1515.96,9.651e-05,2]
[346588408,1735119039333,-500.0,9.651e-05,2]
[346588409,1735119039342,-9145.98,9.651e-05,2]
[346588410,1735119039351,-2263.26,9.651e-05,2]
[346588411,1735119039360,-3044.96,9.651e-05,2]
[346588412,1735119039369,-7418.18,9.651e-05,2]
[346588413,1735119039379,-3951.9,9.651e-05,2]
[346588414,1735119039388,-500.0,9.651e-05,2]
[346588415,1735119039397,-500.0,9.651e-05,2]
[346588416,1735119039406,-1398.18,9.651e-05,2]
[346588417,1735119039420,-892.77,9.651e-05,2]
[346588418,1735119039429,-1649.32,9.651e-05,2]
[346588419,1735119039438,-1872.89,9.651e-05,2]
[346588420,1735119039447,-1298.52,9.651e-05,2]
[346588421,1735119039456,-4027.02,9.651e-05,2]
[346588422,1735119039466,-850.78,9.651e-05,2]
[346588423,1735119039475,-500.0,9.651e-05,2]
[346588424,1735119039484,-2105.3,9.651e-05,2]
[346588425,1735119039494,-1379.33,9.651e-05,2]
[346588426,1735119039502,-1977.72,9.651e-05,2]
[346588427,1735119039511,-3722.9,9.651e-05,2]
[346588428,1735119039521,-3034.82,9.651e-05,2]
[346588429,1735119039534,-287.43881224,9.651e-05,2]
[346588430,1735119039543,-3913.45,9.651e-05,2]
[346588431,1735119039552,-3600.83,9.651e-05,2]
[346588432,1735119039754,-500.0,9.651e-05,2]
[346588433,1735119039772,-911.77,9.651e-05,2]
[346588434,1735119039781,-1743.99,9.651e-05,2]
[346588435,1735119039791,-5000.0,9.681e-05,2]
[346588436,1735119039801,-7840.07,9.779e-05,2]
[346588438,1735119039810,-1484.38,9.779e-05,2]
[346588439,1735119039820,-1988.767837,9.779e-05,2]
[346588440,1735119039830,-154.188967,9.779e-05,2]
[346588441,1735119039839,-1938.82,9.779e-05,2]
[346588442,1735119039849,-2009.421594,9.779e-05,2]
[346588443,1735119039859,-850.32,9.779e-05,2]
[346588444,1735119039868,-1809.06,9.779e-05,2]
[346588445,1735119039878,-1380.62,9.779e-05,2]
[346588446,1735119039887,-1862.64,9.779e-05,2]
[346588447,1735119039897,-2228.79,9.779e-05,2]
[346588448,1735119039906,-1563.59,9.779e-05,2]
[346588449,1735119039916,-3895.23,9.779e-05,2]
[346588450,1735119039925,-2002.66,9.779e-05,2]
[346588451,1735119039934,-10486.05,9.779e-05,2]
[346588452,1735119039943,-7473.53,9.779e-05,2]
[346588453,1735119039953,-1013.21,9.779e-05,2]
[346588454,1735119039962,-4855.76,9.779e-05,2]
[346588455,1735119039971,-553.08,9.78e-05,2]
[346588456,1735119039980,-998.21,9.78e-05,2]
[346588457,1735119039990,-500.0,9.78e-05,2]
[346588458,1735119039999,-500.0,9.78e-05,2]
[346588459,1735119040008,-500.0,9.78e-05,2]
[346588460,1735119040017,-661.57,9.78e-05,2]
[346588461,1735119040027,-715.43,9.78e-05,2]
[346588462,1735119040036,-1579.51,9.78e-05,2]
[346588463,1735119040046,-925.22,9.78e-05,2]
[346588464,1735119040055,-1178.95,9.78e-05,2]
[346588465,1735119040064,-1035.33,9.78e-05,2]
[346588466,1735119040074,-836.71,9.78e-05,2]
[346588467,1735119040083,-818.22,9.78e-05,2]
[346588468,1735119040091,-500.0,9.78e-05,2]
[346588469,1735119040101,-500.0,9.78e-05,2]
[346588470,1735119040110,-500.0,9.78e-05,2]
[346588471,1735119040120,-661.27,9.78e-05,2]
[346588472,1735119040129,-500.0,9.78e-05,2]
[346588473,1735119040138,-500.0,9.78e-05,2]
[346588474,1735119040148,-500.0,9.78e-05,2]
[346588475,1735119040159,-500.0,9.78e-05,2]
[346588476,1735119040168,-532.27971926,9.78e-05,2]
[346588478,1735119040207,-618.94028074,9.78e-05,2]
[346588480,1735119040217,-271.65571267,9.78e-05,2]
[346588482,1735119040228,-1096.50428733,9.78e-05,2]
[346588483,1735119040238,-692.53,9.78e-05,2]
[346588484,1735119040247,-183.30571267,9.78e-05,2]
[346588485,1735119040259,-316.69428733,9.78e-05,2]
[346588486,1735119040268,-382.84571267,9.78e-05,2]
[346588487,1735119040326,-492.3,9.78e-05,2]
[346588488,1735119040338,-261.83428733,9.78e-05,2]
[346588489,1735119040349,-1194.36,9.78e-05,2]
[346588490,1735119040359,-500.0,9.78e-05,2]
[346588491,1735119040368,-500.0,9.78e-05,2]
[346588492,1735119040378,-500.0,9.78e-05,2]
[346588493,1735119040387,-676.69,9.78e-05,2]
[346588494,1735119040396,-500.0,9.78e-05,2]
[346588495,1735119040406,-509.58,9.78e-05,2]
[346588496,1735119040417,-500.0,9.78e-05,2]
[346588497,1735119040426,-500.0,9.78e-05,2]
[346588499,1735119040436,-500.0,9.78e-05,2]
[346588500,1735119040446,-500.0,9.78e-05,2]
[346588501,1735119040456,-500.0,9.78e-05,2]
[346588502,1735119040465,-646.9,9.78e-05,2]
[346588503,1735119040474,-1718.91,9.78e-05,2]
[346588504,1735119040483,-833.75,9.78e-05,2]
[346588505,1735119040492,-989.93,9.78e-05,2]
[346588506,1735119040502,-829.68,9.78e-05,2]
[346588507,1735119040512,-1118.36,9.78e-05,2]
[346588508,1735119040522,-719.62,9.78e-05,2]
[346588509,1735119040535,-500.0,9.78e-05,2]
[346588510,1735119040546,-607.71,9.78e-05,2]
[346588511,1735119040556,-553.54,9.78e-05,2]
[346588512,1735119040567,-1708.52,9.78e-05,2]
[346588513,1735119040577,-500.0,9.78e-05,2]
[346588514,1735119040587,-852.24,9.78e-05,2]
[346588515,1735119040596,-500.0,9.78e-05,2]
[346588516,1735119040606,-1057.36,9.78e-05,2]
[346588517,1735119040616,-500.0,9.78e-05,2]
[346588518,1735119040625,-552.67,9.78e-05,2]
[346588519,1735119040634,-862.74,9.78e-05,2]
[346588520,1735119040643,-500.0,9.78e-05,2]
[346588521,1735119040652,-500.0,9.78e-05,2]
[346588522,1735119040663,-500.0,9.78e-05,2]
[346588523,1735119040672,-500.0,9.78e-05,2]
[346588524,1735119040683,-500.0,9.78e-05,2]
[346588525,1735119040693,-1767.78,9.78e-05,2]
[346588526,1735119040702,-985.67,9.78e-05,2]
[346588527,1735119040711,-1542.96,9.78e-05,2]
[346588528,1735119040720,-500.0,9.78e-05,2]
[346588529,1735119040730,-670.58,9.78e-05,2]
[346588530,1735119040739,-500.0,9.78e-05,2]
[346588531,1735119040749,-1885.06,9.78e-05,2]
[346588532,1735119040758,-184.45957284,9.78e-05,2]
[346588533,1735119040767,-500.0,9.78e-05,2]
[346588534,1735119040776,-3039.44,9.78e-05,2]
[346588535,1735119040786,-1158.43,9.78e-05,2]
[346588536,1735119040795,-727.95,9.78e-05,2]
[346588537,1735119040804,-1006.81,9.78e-05,2]
[346588538,1735119040813,-1461.81,9.78e-05,2]
[346588539,1735119040823,-500.0,9.78e-05,2]
[346588540,1735119040833,-2223.53,9.78e-05,2]
[346588541,1735119040844,-501.157366,9.78e-05,2]
[346588542,1735119040854,-1531.23,9.78e-05,2]
[346588543,1735119040863,-493.70178101,9.78e-05,2]
[346588544,1735119040873,-1891.65417297,9.78e-05,2]
[346588545,1735119040885,-521.74533198,9.78e-05,2]
[346588546,1735119040896,-503.598,9.78e-05,2]
[346588547,1735119040907,-424.63249505,9.78e-05,2]
[346588548,1735119040918,-118.28750495,9.78e-05,2]
[346588549,1735119041332,-330.52207907,9.78e-05,2]
[346588550,1735119041350,-51.19041598,9.78e-05,2]
[346588551,1735119041359,-5881.9,9.78e-05,2]
[346588552,1735119041369,-628.2,9.78e-05,2]
[346588553,1735119041378,-1107.31,9.78e-05,2]
[346588554,1735119041387,-500.0,9.78e-05,2]
[346588555,1735119041397,-3362.12,9.78e-05,2]
[346588556,1735119041407,-1640.34,9.78e-05,2]
[346588557,1735119041419,-1623.9,9.78e-05,2]
[346588558,1735119041428,-1469.07,9.78e-05,2]
[346588559,1735119041439,-14476.15,9.78e-05,2]
[346588560,1735119041449,-944.24,9.78e-05,2]
[346588561,1735119041458,-1303.36,9.78e-05,2]
[346588562,1735119041467,-1945.33,9.78e-05,2]
[346588563,1735119041477,-500.0,9.78e-05,2]
[346588564,1735119041486,-3519.09,9.78e-05,2]
[346588565,1735119041495,-2165.14,9.78e-05,2]
[346588566,1735119041504,-801.68,9.78e-05,2]
[346588567,1735119041513,-5891.23,9.78e-05,2]
[346588568,1735119041522,-500.0,9.78e-05,2]
[346588569,1735119041536,-1284.49,9.78e-05,2]
[346588570,1735119041545,-11872.84,9.78e-05,2]
[346588571,1735119041555,-1570.79,9.78e-05,2]
[346588572,1735119041564,-3272.35,9.78e-05,2]
[346588573,1735119041573,-1756.91,9.78e-05,2]
[346588574,1735119041583,-6244.52,9.78e-05,2]
[346588575,1735119041592,-859.91,9.78e-05,2]
[346588576,1735119041601,-1728.98,9.78e-05,2]
[346588577,1735119041610,-3719.72,9.78e-05,2]
[346588578,1735119041621,-500.0,9.78e-05,2]
[346588579,1735119041630,-515.37711904,9.78e-05,2]
[346588580,1735119041639,-7452.8,9.78e-05,2]
[346588581,1735119041648,-1801.87,9.78e-05,2]
[346588582,1735119041656,-8577.16,9.78e-05,2]
[346588583,1735119041668,-7180.5,9.78e-05,2]
[346588584,1735119041677,-500.0,9.78e-05,2]
[346588585,1735119041686,-2047.88,9.78e-05,2]
[346588586,1735119041696,-1942.25,9.78e-05,2]
[346588587,1735119041705,-2658.63,9.78e-05,2]
[346588588,1735119041715,-7913.55,9.78e-05,2]
[346588589,1735119041724,-2657.24,9.78e-05,2]
[346588590,1735119041734,-2759.92,9.78e-05,2]
[346588591,1735119041743,-610.22,9.78e-05,2]
[346588592,1735119041752,-947.11,9.78e-05,2]
[346588593,1735119041762,-580.52271585,9.78e-05,2]
[346588594,1735119041771,-500.0,9.78e-05,2]
[346588595,1735119041780,-500.0,9.781e-05,2]
[346588596,1735119041790,-500.0,9.781e-05,2]
[346588597,1735119041799,-571.99,9.781e-05,2]
[346588598,1735119041808,-500.0,9.781e-05,2]
[346588599,1735119041818,-500.0,9.781e-05,2]
[346588600,1735119041827,-500.0,9.781e-05,2]
[346588601,1735119041836,-513.78,9.781e-05,2]
[346588602,1735119041846,-500.0,9.781e-05,2]
[346588603,1735119041855,-500.0,9.781e-05,2]
[346588604,1735119041865,-376.82361093,9.781e-05,2]
[346588605,1735119041875,-593.2,9.781e-05,2]
[346588606,1735119041885,-500.0,9.781e-05,2]
[346588607,1735119041894,-500.0,9.781e-05,2]
[346588608,1735119041904,-500.0,9.781e-05,2]
[346588609,1735119041914,-500.0,9.781e-05,2]
[346588610,1735119041923,-608.2,9.781e-05,2]
[346588611,1735119041932,-654.44,9.781e-05,2]
[346588612,1735119041942,-807.93,9.781e-05,2]
[346588613,1735119041952,-500.0,9.781e-05,2]
[346588614,1735119041961,-500.0,9.781e-05,2]
[346588615,1735119041971,-500.0,9.781e-05,2]
[346588616,1735119041980,-500.0,9.781e-05,2]
[346588617,1735119041990,-500.0,9.781e-05,2]
[346588618,1735119041999,-500.0,9.781e-05,2]
[346588619,1735119042010,-500.0,9.781e-05,2]
[346588620,1735119042019,-500.0,9.781e-05,2]
[346588621,1735119042030,-500.0,9.781e-05,2]
[346588622,1735119042039,-500.0,9.781e-05,2]
[346588623,1735119042049,-500.0,9.781e-05,2]
[346588624,1735119042059,-500.0,9.781e-05,2]
[346588625,1735119042070,-500.0,9.781e-05,2]
[346588626,1735119042079,-500.0,9.781e-05,2]
[346588627,1735119042088,-500.0,9.781e-05,2]
[346588628,1735119042098,-500.0,9.781e-05,2]
[346588629,1735119042107,-604.55,9.781e-05,2]
[346588630,1735119042117,-500.0,9.781e-05,2]
[346588631,1735119042126,-500.0,9.781e-05,2]
[346588632,1735119042135,-500.0,9.781e-05,2]
[346588633,1735119042145,-500.0,9.781e-05,2]
[346588634,1735119042156,-500.0,9.781e-05,2]
[346588635,1735119042166,-500.0,9.781e-05,2]
[346588636,1735119042175,-500.0,9.781e-05,2]
[346588637,1735119042185,-624.06,9.781e-05,2]
[346588638,1735119042194,-545.74,9.781e-05,2]
[346588639,1735119042203,-500.0,9.781e-05,2]
[346588640,1735119042213,-500.0,9.781e-05,2]
[346588641,1735119042222,-500.0,9.781e-05,2]
[346588642,1735119042232,-500.0,9.781e-05,2]
[346588643,1735119042241,-500.0,9.781e-05,2]
[346588644,1735119042250,-684.75,9.781e-05,2]
[346588645,1735119042260,-500.0,9.781e-05,2]
[346588646,1735119042270,-500.0,9.781e-05,2]
[346588647,1735119042279,-500.0,9.781e-05,2]
[346588648,1735119042288,-574.96,9.781e-05,2]
[346588649,1735119042298,-500.0,9.781e-05,2]
[346588650,1735119042307,-500.0,9.781e-05,2]
[346588651,1735119042316,-500.0,9.781e-05,2]
[346588652,1735119042326,-681.17,9.781e-05,2]
[346588653,1735119042335,-500.0,9.781e-05,2]
[346588654,1735119042346,-500.0,9.781e-05,2]
[346588655,1735119042356,-500.25,9.781e-05,2]
[346588656,1735119042365,-641.82,9.781e-05,2]
[346588657,1735119042374,-1217.55,9.781e-05,2]
[346588658,1735119042384,-556.33,9.781e-05,2]
[346588659,1735119042393,-500.0,9.781e-05,2]
[346588660,1735119042402,-577.67,9.781e-05,2]
[346588661,1735119042411,-500.0,9.781e-05,2]
[346588662,1735119042420,-889.09,9.781e-05,2]
[346588663,1735119042430,-500.0,9.781e-05,2]
[346588664,1735119042439,-500.0,9.781e-05,2]
[346588665,1735119042449,-1335.92,9.781e-05,2]
[346588666,1735119042641,-1358.28,9.781e-05,2]
[346588667,1735119042651,-500.0,9.781e-05,2]
[346588668,1735119042662,-500.0,9.781e-05,2]
[346588669,1735119042671,-500.0,9.781e-05,2]
[346588670,1735119042682,-500.0,9.781e-05,2]
[346588671,1735119042693,-500.0,9.781e-05,2]
[346588672,1735119042703,-513.48,9.781e-05,2]
[346588673,1735119042712,-664.32,9.781e-05,2]
[346588674,1735119042722,-500.0,9.781e-05,2]
[346588675,1735119042731,-500.0,9.781e-05,2]
[346588676,1735119042741,-885.29,9.781e-05,2]
[346588677,1735119042751,-500.0,9.781e-05,2]
[346588678,1735119042761,-500.0,9.781e-05,2]
[346588679,1735119042771,-500.0,9.781e-05,2]
[346588680,1735119042780,-500.0,9.781e-05,2]
[346588681,1735119042789,-500.0,9.781e-05,2]
[346588682,1735119042799,-500.0,9.781e-05,2]
[346588683,1735119042808,-500.0,9.781e-05,2]
[346588684,1735119042818,-500.0,9.781e-05,2]
[346588685,1735119042827,-500.0,9.781e-05,2]
[346588686,1735119042836,-568.45,9.781e-05,2]
[346588687,1735119042846,-876.98,9.781e-05,2]
[346588688,1735119042856,-597.81,9.781e-05,2]
[346588689,1735119042866,-500.0,9.781e-05,2]
[346588690,1735119042875,-775.53,9.781e-05,2]
[346588691,1735119042884,-500.0,9.781e-05,2]
[346588692,1735119042893,-500.0,9.781e-05,2]
[346588693,1735119042903,-500.0,9.781e-05,2]
[346588694,1735119042914,-1221.15,9.781e-05,2]
[346588695,1735119042923,-500.0,9.781e-05,2]
[346588696,1735119042932,-500.0,9.781e-05,2]
[346588697,1735119042941,-636.12,9.781e-05,2]